bitfinex-derivatives/quotes_BTCF0:USTF0_20250106
["timestamp","ask_amount","ask_price","bid_price","bid_amount"]
[1736137629935,0.43691277,99401.0,99400.0,0.00055916]
[1736137632040,0.41653401,99401.0,99400.0,0.00055916]
[1736137632238,0.43690123,99401.0,99400.0,0.00055916]
[1736137634031,0.43690555,99401.0,99400.0,0.00055916]
[1736137634232,0.41653401,99401.0,99400.0,0.00055916]
[1736137635646,0.41653401,99401.0,99400.0,0.18104682]
[1736137636641,0.41653401,99401.0,99400.0,0.00055916]
[1736137639942,0.57653401,99401.0,99400.0,0.00055916]
[1736137640337,0.04529,99394.0,99392.0,0.24067446]
[1736137641451,0.04529,99394.0,99392.0,0.24567446]
[1736137641951,0.04529,99394.0,99392.0,0.005]
[1736137642555,0.15089899,99398.0,99392.0,0.007]
[1736137642759,0.20089899,99398.0,99392.0,0.052291]
[1736137643060,0.15089899,99398.0,99392.0,0.007]
[1736137643261,0.15089899,99398.0,99394.0,0.04529]
[1736137643654,0.15089899,99398.0,99395.0,1.35]
[1736137644747,0.19618699,99398.0,99395.0,1.35]
[1736137644949,0.06566608,99397.0,99395.0,1.35]
[1736137645651,0.21656507,99397.0,99395.0,1.35]
[1736137645854,0.19618799,99397.0,99395.0,1.35]
[1736137646254,0.19618799,99397.0,99395.0,1.353]
[1736137646961,0.15089899,99396.0,99395.0,1.353]
[1736137647462,0.17128483,99396.0,99395.0,1.353]
[1736137647661,0.17128483,99396.0,99395.0,0.003]
[1736137648062,0.02038584,99396.0,99395.0,0.004]
[1736137648461,0.045289,99397.0,99395.0,0.004]
[1736137649564,0.045289,99397.0,99395.0,0.003]
[1736137649865,0.045289,99397.0,99395.0,0.004]
[1736137650367,0.045289,99397.0,99395.0,0.00109918]
[1736137650664,0.045289,99397.0,99395.0,0.00209918]
[1736137651960,0.06567483,99397.0,99395.0,0.00209918]
[1736137653267,0.02038583,99396.0,99395.0,0.00209918]
[1736137653454,0.045289,99397.0,99395.0,0.00209918]
[1736137654271,0.045289,99397.0,99395.0,0.001]
[1736137654466,0.045288,99397.0,99395.0,0.004]
[1736137655164,0.15098113,99396.0,99395.0,0.004]
[1736137655369,0.17136696,99396.0,99395.0,0.004]
[1736137656770,0.15098113,99396.0,99395.0,0.004]
[1736137656973,0.15098113,99396.0,99390.0,0.00186042]
[1736137656974,0.045291,99391.0,99390.0,0.00186042]
[1736137657172,0.416091,99391.0,99390.0,0.00186042]
[1736137657474,0.42665211,99391.0,99390.0,0.00186042]
[1736137657671,0.045294,99385.0,99383.0,0.0328]
[1736137658263,0.045296,99381.0,99380.0,0.00150922]
[1736137658459,0.406096,99381.0,99380.0,0.00150922]
[1736137658965,0.55703892,99381.0,99380.0,0.00150922]
[1736137659172,0.57749419,99381.0,99380.0,0.00150922]
[1736137660068,0.42655127,99381.0,99380.0,0.00550922]
[1736137660374,0.42755127,99381.0,99380.0,0.01450922]
[1736137660574,0.407096,99381.0,99380.0,0.01450922]
[1736137664078,0.55803892,99381.0,99380.0,0.01450922]
[1736137665272,0.001,99381.0,99380.0,0.01450922]
[1736137665973,0.01126627,99381.0,99380.0,0.01450922]
[1736137666171,0.001,99381.0,99380.0,0.01450922]
[1736137666573,0.046296,99381.0,99380.0,0.01450922]
[1736137667475,0.06700682,99381.0,99380.0,0.013]
[1736137667679,0.0453,99372.0,99370.0,0.0307]
[1736137667983,0.3608,99371.0,99370.0,0.0307]
[1736137669076,0.0453,99372.0,99370.0,0.0307]
[1736137669484,0.09732495,99380.0,99370.0,0.0307]
[1736137669683,0.045297,99378.0,99370.0,0.0307]
[1736137669882,0.12057256,99372.0,99370.0,0.0317]
[1736137670282,0.12057256,99372.0,99370.0,0.0337]
[1736137670887,0.12057256,99378.0,99370.0,0.0307]
[1736137671076,0.14057256,99378.0,99370.0,0.0327]
[1736137671487,0.0453,99372.0,99370.0,0.0307]
[1736137671690,0.0453,99372.0,99370.0,0.0327]
[1736137672387,0.12057256,99377.0,99374.0,0.045299]
[1736137672781,0.12057256,99377.0,99370.0,0.0337]
[1736137672982,0.0453,99372.0,99370.0,0.0337]
[1736137673682,0.0453,99372.0,99370.0,0.0327]
[1736137673897,0.045297,99379.0,99370.0,0.0327]
[1736137674389,0.045297,99379.0,99370.0,0.0337]
[1736137674594,0.045297,99379.0,99370.0,0.0317]
[1736137674790,0.045297,99379.0,99370.0,0.0337]
[1736137675178,0.045297,99379.0,99370.0,0.0317]
[1736137675378,0.045297,99379.0,99370.0,0.0337]
[1736137676086,0.16586956,99379.0,99370.0,0.0337]
[1736137676487,0.16586956,99379.0,99370.0,0.079]
[1736137677489,0.045297,99379.0,99370.0,0.079]
[1736137678991,0.045297,99379.0,99373.0,0.3608]
[1736137680096,0.045297,99379.0,99370.0,0.078]
[1736137680297,0.12057256,99381.0,99370.0,0.078]
[1736137680298,0.3608,99375.0,99370.0,0.078]
[1736137680597,0.3608,99375.0,99373.0,0.001]
[1736137681495,0.3608,99375.0,99370.0,0.076]
[1736137681695,0.3608,99375.0,99370.0,0.078]
[1736137681894,0.406099,99375.0,99370.0,0.0327]
[1736137682193,0.3608,99373.0,99370.0,0.0307]
[1736137682597,0.16587256,99372.0,99370.0,0.0307]
[1736137682894,0.16587256,99372.0,99370.0,0.0317]
[1736137683892,0.12057256,99371.0,99370.0,0.003]
[1736137684800,0.12057256,99371.0,99370.0,0.001]
[1736137685001,0.12057256,99371.0,99370.0,0.003]
[1736137685200,0.05557906,99372.0,99370.0,0.003]
[1736137685399,0.01027906,99372.0,99359.0,0.0338]
[1736137685602,0.045305,99360.0,99359.0,0.0338]
[1736137686291,0.045305,99360.0,99358.0,0.0334]
[1736137687301,0.046305,99360.0,99359.0,0.007]
[1736137688091,0.045305,99360.0,99358.0,0.0364]
[1736137688404,0.046305,99360.0,99358.0,0.0434]
[1736137689803,0.046305,99360.0,99359.0,0.007]
[1736137690392,0.046305,99360.0,99359.0,0.002]
[1736137690998,0.046305,99360.0,99359.0,0.009]
[1736137692405,0.05664381,99360.0,99359.0,0.009]
[1736137693307,0.06664381,99360.0,99359.0,0.009]
[1736137693506,0.05664381,99360.0,99359.0,0.009]
[1736137698197,1.19837881,99360.0,99338.0,0.29425627]
[1736137698397,0.04532,99328.0,99327.0,0.27234344]
[1736137698610,0.04532,99328.0,99327.0,1.35]
[1736137698611,0.3608,99328.0,99327.0,1.35]
[1736137700412,0.3608,99328.0,99327.0,1.351]
[1736137700611,0.3608,99328.0,99327.0,1.355]
[1736137700812,0.3608,99328.0,99327.0,1.40032]
[1736137701308,0.3608,99328.0,99327.0,1.39832]
[1736137702213,0.37119622,99328.0,99327.0,1.39832]
[1736137717515,0.37119622,99328.0,99327.0,1e-06]
[1736137717714,0.53119622,99328.0,99300.0,0.1]
[1736137717917,0.3608,99301.0,99300.0,0.1]
[1736137718115,0.3608,99301.0,99300.0,1.45]
[1736137718319,0.3608,99301.0,99300.0,1.495333]
[1736137718523,0.3608,99301.0,99300.0,0.16108193]
[1736137718823,0.3608,99301.0,99300.0,0.150333]
[1736137719128,0.3608,99301.0,99300.0,0.154333]
[1736137719625,0.3608,99301.0,99300.0,0.153333]
[1736137720927,0.3618,99301.0,99300.0,0.152333]
[1736137722220,0.3618,99301.0,99300.0,0.16808112]
[1736137722422,0.3618,99301.0,99300.0,1.51808112]
[1736137723428,0.37195131,99301.0,99300.0,1.51808112]
[1736137727621,0.37195131,99301.0,99300.0,1.457]
[1736137730532,0.37195131,99301.0,99300.0,0.107]
[1736137731932,0.37095131,99301.0,99300.0,0.104]
[1736137732136,0.38095131,99301.0,99300.0,0.104]
[1736137733635,0.37095131,99301.0,99300.0,0.104]
[1736137734335,0.37095131,99301.0,99300.0,1.454]
[1736137735035,0.37095131,99301.0,99300.0,0.104]
[1736137735633,0.37095131,99301.0,99300.0,1.454]
[1736137736831,0.37095131,99301.0,99300.0,0.104]
[1736137742446,0.3608,99301.0,99300.0,0.104]
[1736137742833,0.09041686,99305.0,99304.0,0.045331]
[1736137743142,0.12055581,99310.0,99309.0,0.045328]
[1736137743731,0.13090779,99310.0,99309.0,0.045328]
[1736137744143,0.12055581,99310.0,99309.0,0.045328]
[1736137744744,0.12055581,99310.0,99304.0,1.35152]
[1736137744745,0.3608,99314.0,99304.0,1.35152]
[1736137744944,0.3608,99314.0,99313.0,0.045327]
[1736137745141,0.04683391,99321.0,99313.0,0.045327]
[1736137745142,0.00151091,99321.0,99313.0,0.045327]
[1736137745338,0.01178946,99321.0,99320.0,0.045323]
[1736137745535,0.00151091,99321.0,99320.0,0.045323]
[1736137746640,0.36160001,99326.0,99324.0,0.045321]
[1736137746832,0.37183409,99326.0,99324.0,0.045321]
[1736137748039,0.37103408,99326.0,99324.0,0.045321]
[1736137748237,0.41635508,99326.0,99324.0,0.045321]
[1736137750147,0.50669504,99326.0,99324.0,0.045321]
[1736137751445,0.41635508,99326.0,99324.0,0.045321]
[1736137753050,0.3608,99325.0,99324.0,0.045321]
[1736137757244,0.3618,99325.0,99324.0,0.045321]
[1736137757645,0.3638,99325.0,99324.0,0.045321]
[1736137757844,0.3638,99325.0,99324.0,1.395321]
[1736137758050,0.3648,99325.0,99324.0,1.395321]
[1736137760352,0.3628,99325.0,99324.0,1.395321]
[1736137760551,0.3678,99325.0,99324.0,1.395321]
[1736137760752,0.3678,99325.0,99324.0,0.045321]
[1736137763755,0.3678,99325.0,99311.0,0.18005116]
[1736137763957,0.09735879,99321.0,99319.0,0.045324]
[1736137764156,0.41400201,99325.0,99319.0,0.045324]
[1736137764357,0.413122,99325.0,99319.0,0.045324]
[1736137766045,0.411122,99325.0,99319.0,0.045324]
[1736137766267,0.003,99321.0,99319.0,0.045324]
[1736137766464,0.003,99321.0,99310.0,1.35]
[1736137766465,0.003,99321.0,99314.0,0.18005116]
[1736137766666,0.406125,99316.0,99314.0,0.18005116]
[1736137768067,0.407125,99316.0,99314.0,0.18005116]
[1736137768570,0.045328,99311.0,99310.0,1.35]
[1736137770364,0.09028834,99315.0,99313.0,0.045326]
[1736137771562,0.10047806,99315.0,99313.0,0.045326]
[1736137772184,0.09028834,99315.0,99313.0,0.045326]
[1736137772365,0.3608,99316.0,99311.0,0.24046673]
[1736137772666,0.37133651,99316.0,99315.0,0.045326]
[1736137773960,0.37333651,99316.0,99315.0,0.045326]
[1736137774476,0.37433651,99316.0,99315.0,0.045326]
[1736137780165,0.49489232,99316.0,99315.0,0.045326]
[1736137781573,0.49489232,99316.0,99312.0,0.24081494]
[1736137781574,0.045327,99313.0,99312.0,0.24081494]
[1736137783075,0.045327,99313.0,99310.0,1.59133494]
[1736137783275,0.12055581,99315.0,99310.0,1.59081494]
[1736137783476,0.045327,99312.0,99310.0,1.59081494]
[1736137784071,0.045327,99312.0,99310.0,1.35]
[1736137784969,0.046327,99312.0,99310.0,1.35]
[1736137785170,0.046327,99312.0,99308.0,0.18071732]
[1736137785669,0.001,99312.0,99309.0,1.53071732]
[1736137785874,0.045328,99311.0,99309.0,1.53071732]
[1736137787167,0.045328,99311.0,99309.0,1.35]
[1736137787168,0.1660898,99311.0,99309.0,1.35]
[1736137787775,0.1670898,99311.0,99309.0,1.35]
[1736137789582,0.045328,99310.0,99308.0,0.18071732]
[1736137789883,0.1217618,99311.0,99307.0,0.18071732]
[1736137789884,0.045329,99309.0,99307.0,0.18071732]
[1736137790075,0.3608,99308.0,99307.0,0.18071732]
[1736137791374,0.3608,99308.0,99300.0,0.1]
[1736137791682,0.045331,99304.0,99300.0,0.1]
[1736137792771,0.09054544,99301.0,99300.0,0.1]
[1736137793483,0.09054544,99301.0,99300.0,0.103]
[1736137793680,0.09054544,99301.0,99300.0,0.104]
[1736137793879,0.12072725,99305.0,99300.0,0.104]
[1736137794276,0.12072725,99305.0,99300.0,0.103]
[1736137794579,0.12072725,99305.0,99300.0,0.104]
[1736137795079,0.09053123,99302.0,99300.0,0.28371732]
[1736137795274,0.09053123,99302.0,99300.0,0.28471732]
[1736137795475,0.09053123,99302.0,99301.0,1.35]
[1736137796079,0.09053123,99302.0,99301.0,1.395332]
[1736137796477,0.09053123,99303.0,99301.0,1.57604932]
[1736137797587,0.09053123,99303.0,99301.0,1.395332]
[1736137797987,0.09053123,99303.0,99301.0,1.398332]
[1736137798284,0.09053123,99303.0,99301.0,1.399332]
[1736137798887,0.09053123,99304.0,99301.0,1.399332]
[1736137800791,0.09053123,99304.0,99301.0,1.398332]
[1736137800983,0.09053123,99304.0,99301.0,1.399332]
[1736137801687,0.09053123,99304.0,99303.0,0.18055649]
[1736137802387,0.09053123,99304.0,99303.0,1.53055649]
[1736137803090,0.09053123,99304.0,99303.0,1.53255649]
[1736137803280,0.045331,99305.0,99303.0,1.53255649]
[1736137804291,0.045331,99305.0,99303.0,1.53355649]
[1736137805494,0.045331,99305.0,99303.0,1.53255649]
[1736137805694,0.05567586,99305.0,99303.0,1.53355649]
[1736137806095,0.05567586,99305.0,99303.0,1.353]
[1736137807094,0.05567586,99305.0,99303.0,1.53355649]
[1736137807095,0.17640311,99305.0,99303.0,1.53355649]
[1736137808484,0.12072725,99304.0,99303.0,1.353]
[1736137811396,0.05567586,99305.0,99303.0,1.353]
[1736137812799,0.05567586,99305.0,99303.0,1.351]
[1736137812990,0.05567586,99305.0,99303.0,1.353]
[1736137822295,0.05567586,99305.0,99304.0,0.24081494]
[1736137823500,0.05567586,99305.0,99303.0,1.59337494]
[1736137823700,0.3608,99304.0,99303.0,1.59281494]
[1736137823903,0.3608,99304.0,99303.0,1.59081494]
[1736137824702,0.3608,99304.0,99303.0,1.59181494]
[1736137825202,0.05567586,99305.0,99303.0,1.59181494]
[1736137825503,0.3608,99304.0,99303.0,1.59181494]
[1736137825704,0.3608,99304.0,99303.0,1.59381494]
[1736137827106,0.3608,99304.0,99303.0,1.353]
[1736137832414,0.05567586,99305.0,99303.0,1.353]
[1736137832712,0.3608,99304.0,99303.0,1.353]
[1736137833915,0.3608,99304.0,99303.0,1.352]
[1736137834106,0.3608,99304.0,99303.0,1.353]
[1736137834707,0.3608,99304.0,99303.0,1.352]
[1736137834911,0.3608,99304.0,99303.0,1.353]
[1736137841821,0.1507157,99308.0,99307.0,0.045329]
[1736137842222,0.12089619,99305.0,99304.0,0.045331]
[1736137843522,0.09063818,99307.0,99304.0,0.357026]
[1736137843822,0.09063818,99307.0,99305.0,0.04533]
[1736137845022,0.09063818,99309.0,99308.0,0.045329]
[1736137846515,0.10073562,99309.0,99308.0,0.045329]
[1736137850320,0.01009744,99309.0,99308.0,0.045329]
[1736137850520,0.12089619,99312.0,99303.0,1.3506]
[1736137850737,0.12089619,99312.0,99311.0,0.045328]
[1736137851612,0.12089619,99312.0,99311.0,0.2860918]
[1736137853223,0.12289619,99312.0,99311.0,0.2860918]
[1736137853923,0.13302567,99312.0,99311.0,0.2860918]
[1736137854118,0.13402567,99312.0,99311.0,0.2860918]
[1736137855224,0.01312948,99312.0,99311.0,0.2860918]
[1736137856729,0.13402567,99312.0,99311.0,0.2860918]
[1736137857323,0.13402567,99312.0,99311.0,1.6360918]
[1736137857828,0.01312948,99312.0,99311.0,1.395328]
[1736137861330,0.003,99312.0,99311.0,1.395328]
[1736137864836,0.09357881,99312.0,99311.0,1.395328]
[1736137866640,0.003,99312.0,99311.0,1.395328]
[1736137871541,0.003,99312.0,99311.0,1.35]
[1736137874843,0.093,99312.0,99304.0,0.19867224]
[1736137875050,0.045332,99301.0,99300.0,0.1]
[1736137875240,0.045332,99301.0,99300.0,1.45]
[1736137876350,0.045332,99301.0,99300.0,1.453]
[1736137876743,0.045332,99301.0,99300.0,0.104]
[1736137877149,0.1960477,99301.0,99300.0,0.104]
[1736137877742,0.5568477,99301.0,99300.0,0.104]
[1736137878441,0.45512692,99301.0,99300.0,0.104]
[1736137878648,0.81592692,99301.0,99300.0,0.104]
[1736137879144,0.045336,99292.0,99289.0,1.35]
[1736137879352,0.045337,99290.0,99289.0,1.35]
[1736137880754,0.406137,99290.0,99289.0,1.35]
[1736137881347,0.3608,99290.0,99280.0,4e-05]
[1736137881547,0.045341,99282.0,99280.0,4e-05]
[1736137881749,0.406141,99282.0,99280.0,4e-05]
[1736137882053,0.406141,99282.0,99281.0,1.35]
[1736137882654,0.407141,99282.0,99281.0,1.35]
[1736137883749,0.443741,99282.0,99281.0,1.35]
[1736137884152,0.442741,99282.0,99280.0,0.00404]
[1736137884350,0.442741,99282.0,99261.0,0.0397]
[1736137884351,0.3984,99282.0,99261.0,0.0397]
[1736137884657,0.06393928,99271.0,99269.0,1.35]
[1736137884850,0.3608,99272.0,99269.0,1.35]
[1736137885960,0.3618,99272.0,99269.0,1.354]
[1736137886661,0.37185087,99272.0,99269.0,1.354]
[1736137887057,0.37185087,99272.0,99269.0,1.399347]
[1736137887562,0.37185087,99272.0,99270.0,0.01575291]
[1736137887755,0.41719687,99272.0,99271.0,0.01575291]
[1736137888151,0.41719687,99272.0,99269.0,1.35452]
[1736137888351,0.045346,99271.0,99270.0,0.01575315]
[1736137888758,0.045346,99271.0,99270.0,0.01775315]
[1736137889553,0.045346,99271.0,99270.0,0.002]
[1736137890362,0.045346,99271.0,99270.0,0.0389]
[1736137890564,0.045346,99271.0,99270.0,0.05465318]
[1736137890768,0.046346,99271.0,99270.0,0.05265318]
[1736137890965,0.046346,99271.0,99270.0,0.05465318]
[1736137894083,0.046346,99271.0,99270.0,0.01775318]
[1736137899280,0.001,99271.0,99270.0,0.01775318]
[1736137900576,0.001,99271.0,99270.0,0.002]
[1736137901478,0.001,99271.0,99270.0,0.01775279]
[1736137911082,0.046346,99271.0,99270.0,0.01775279]
[1736137914183,0.046346,99271.0,99270.0,0.002]
[1736137919489,0.1971281,99271.0,99270.0,0.002]
[1736137920892,0.09535141,99271.0,99270.0,0.002]
[1736137922186,0.046346,99271.0,99270.0,0.002]
[1736137923697,0.09535141,99271.0,99270.0,0.002]
[1736137926597,0.19747577,99271.0,99270.0,0.002]
[1736137927595,0.19747577,99271.0,99270.0,1.352]
[1736137927902,0.046346,99271.0,99270.0,1.352]
[1736137928193,0.001,99271.0,99270.0,1.352]
[1736137928396,0.001,99271.0,99270.0,1.397346]
[1736137942608,0.001,99271.0,99270.0,0.002]
[1736137942819,0.046346,99271.0,99270.0,0.002]
[1736137951518,0.19738429,99271.0,99270.0,0.002]
[1736137953819,0.04535,99263.0,99261.0,1.3897]
[1736137954034,0.40615,99263.0,99261.0,1.35]
[1736137954931,0.40615,99263.0,99261.0,1.353]
[1736137955240,0.40615,99263.0,99261.0,0.003]
[1736137955732,0.045353,99255.0,99254.0,1.35]
[1736137956931,0.046353,99255.0,99254.0,1.35]
[1736137957333,0.05672333,99255.0,99254.0,1.35]
[1736137957535,0.05672333,99255.0,99254.0,1.7128]
[1736137958332,0.05672333,99255.0,99254.0,1.352]
[1736137959827,0.01137033,99255.0,99254.0,1.352]
[1736137960029,0.001,99255.0,99254.0,1.352]
[1736137960241,0.001,99255.0,99254.0,1.397354]
[1736137963434,0.3608,99263.0,99254.0,1.397354]
[1736137963435,0.09058198,99259.0,99255.0,0.045353]
[1736137963635,0.09058198,99259.0,99258.0,0.045352]
[1736137964536,0.09158198,99259.0,99258.0,0.045352]
[1736137964741,0.001,99259.0,99258.0,0.045352]
[1736137966038,0.28945768,99280.0,99272.0,0.045345]
[1736137966441,0.2255184,99280.0,99272.0,0.045345]
[1736137966741,0.2255184,99280.0,99272.0,1.395345]
[1736137967132,0.01024756,99274.0,99272.0,1.395345]
[1736137967639,0.1801764,99280.0,99272.0,1.395345]
[1736137967835,0.15201893,99273.0,99272.0,1.395345]
[1736137968038,0.001,99273.0,99272.0,1.63634962]
[1736137969540,0.001,99273.0,99272.0,1.395345]
[1736137969844,0.01014868,99280.0,99272.0,1.395345]
[1736137970041,0.06393928,99282.0,99272.0,1.351]
[1736137970248,0.06393928,99282.0,99280.0,0.045341]
[1736137970552,0.00999279,99282.0,99280.0,0.045341]
[1736137970739,0.3608,99287.0,99280.0,0.045341]
[1736137972737,0.37083865,99287.0,99281.0,0.045341]
[1736137972937,0.37083865,99287.0,99282.0,0.0309]
[1736137973650,0.37183865,99287.0,99282.0,0.0309]
[1736137974533,0.37283865,99287.0,99281.0,0.045341]
[1736137975442,0.41817765,99287.0,99281.0,0.045341]
[1736137976739,0.41717765,99287.0,99281.0,0.045341]
[1736137976939,0.41817765,99287.0,99281.0,0.045341]
[1736137979448,0.045339,99286.0,99282.0,0.045341]
[1736137979756,0.045339,99286.0,99272.0,1.5908322]
[1736137979943,0.045339,99286.0,99283.0,0.04534]
[1736137980549,0.046339,99286.0,99283.0,0.04534]
[1736137980944,0.047339,99286.0,99283.0,0.04534]
[1736137981149,0.046339,99286.0,99283.0,0.04534]
[1736137981349,0.047339,99286.0,99283.0,0.04534]
[1736137981950,0.047339,99286.0,99284.0,0.04534]
[1736137982151,0.002,99286.0,99284.0,0.04534]
[1736137983336,0.004,99286.0,99284.0,0.04534]
[1736137984241,0.049339,99286.0,99284.0,0.04534]
[1736137984751,0.045342,99280.0,99277.0,0.045343]
[1736137985750,0.045342,99280.0,99272.0,1.5913522]
[1736137985941,0.045342,99280.0,99278.0,0.045342]
[1736137987251,0.045342,99280.0,99278.0,0.046342]
[1736137987447,0.045342,99280.0,99272.0,1.33913133]
[1736137987448,0.3608,99279.0,99272.0,1.33913133]
[1736137987640,0.045347,99269.0,99268.0,0.2408322]
[1736137988038,0.045347,99269.0,99268.0,1.5608322]
[1736137988648,0.3608,99276.0,99262.0,0.2861822]
[1736137988852,0.045348,99267.0,99262.0,0.2861822]
[1736137989249,0.045348,99267.0,99263.0,1.32]
[1736137989646,0.045348,99267.0,99264.0,0.0301]
[1736137990449,0.046348,99267.0,99264.0,0.0301]
[1736137990954,0.046348,99267.0,99264.0,0.0321]
[1736137992044,0.01129344,99267.0,99264.0,0.0331]
[1736137992357,0.045348,99266.0,99264.0,0.0331]
[1736137993844,0.046348,99266.0,99264.0,0.0331]
[1736137994646,0.046348,99266.0,99265.0,1.32]
[1736137994843,0.046348,99266.0,99264.0,0.003]
[1736137995452,0.046348,99266.0,99264.0,1.323]
[1736137995759,0.046348,99266.0,99264.0,0.003]
[1736137996252,0.046348,99266.0,99265.0,0.002]
[1736137996957,0.046348,99266.0,99264.0,0.003]
[1736137997552,0.206348,99266.0,99264.0,0.003]
[1736137997856,0.206348,99266.0,99265.0,0.002]
[1736137998652,0.206348,99266.0,99265.0,0.003]
[1736137999359,0.206348,99266.0,99265.0,0.001]
[1736138000754,0.206348,99266.0,99265.0,0.003]
[1736138001458,0.046348,99266.0,99265.0,0.003]
[1736138005759,0.186348,99266.0,99265.0,0.003]
[1736138013568,0.04535,99261.0,99260.0,0.18057548]
[1736138013775,0.19535,99261.0,99260.0,0.18057548]
[1736138014572,0.045354,99254.0,99253.0,0.18057548]
[1736138015978,0.045354,99254.0,99253.0,0.004]
[1736138016473,0.046354,99254.0,99253.0,0.004]
[1736138017471,0.045355,99251.0,99250.0,1.35]
[1736138018276,0.045355,99251.0,99250.0,0.03]
[1736138018480,0.045355,99251.0,99250.0,0.031]
[1736138018978,0.046355,99251.0,99250.0,0.031]
[1736138019379,0.045355,99251.0,99250.0,0.031]
[1736138019772,0.045355,99251.0,99250.0,0.001]
[1736138020874,0.045356,99248.0,99247.0,0.6016322]
[1736138021675,0.045356,99248.0,99247.0,0.3608]
[1736138028985,0.045356,99249.0,99245.0,0.3608]
[1736138029185,0.045357,99246.0,99245.0,0.3608]
[1736138029586,0.045357,99246.0,99245.0,1.6808]
[1736138035283,0.045357,99246.0,99245.0,0.3608]
[1736138035687,0.045357,99246.0,99245.0,1.6808]
[1736138037394,0.045357,99246.0,99245.0,0.3608]
[1736138040393,0.16615214,99246.0,99245.0,0.3608]
[1736138042201,0.045357,99246.0,99245.0,0.3608]
[1736138049398,0.15101893,99252.0,99245.0,0.3608]
[1736138049705,0.15101893,99252.0,99249.0,0.045356]
[1736138049897,0.15101893,99252.0,99250.0,0.0943]
[1736138050598,0.045354,99253.0,99250.0,0.0943]
[1736138050599,0.12095534,99251.0,99250.0,0.0943]
[1736138051909,0.045354,99253.0,99250.0,0.0943]
[1736138051910,0.045354,99253.0,99250.0,0.33550058]
[1736138052796,0.001,99252.0,99250.0,0.33550058]
[1736138053703,0.046354,99253.0,99250.0,0.33550058]
[1736138053906,0.045355,99251.0,99250.0,0.33550058]
[1736138056305,0.046355,99251.0,99250.0,0.33550058]
[1736138057399,0.046355,99251.0,99250.0,0.0943]
[1736138061408,0.046355,99251.0,99250.0,0.27523767]
[1736138062403,0.046355,99251.0,99250.0,0.0943]
[1736138063606,0.046355,99251.0,99250.0,0.27523767]
[1736138065498,0.046355,99251.0,99250.0,0.0943]
[1736138071715,0.046355,99251.0,99250.0,0.33550058]
[1736138072313,0.046355,99251.0,99250.0,0.24120058]
[1736138074313,0.045357,99246.0,99245.0,0.3608]
[1736138075914,0.11630741,99247.0,99245.0,0.3608]
[1736138076919,0.045359,99243.0,99242.0,0.30121448]
[1736138077117,0.045359,99243.0,99242.0,0.66201448]
[1736138078912,0.045359,99243.0,99242.0,0.70480778]
[1736138080413,0.01003625,99247.0,99246.0,0.045357]
[1736138080719,0.045357,99248.0,99247.0,0.045357]
[1736138080919,0.19637293,99254.0,99245.0,0.3608]
[1736138081123,0.35637293,99254.0,99250.0,0.045355]
[1736138081316,0.35637293,99254.0,99251.0,0.0933]
[1736138081820,0.15101893,99253.0,99251.0,0.0933]
[1736138082820,0.19637293,99253.0,99251.0,0.0933]
[1736138083220,0.09436521,99253.0,99252.0,0.18100411]
[1736138084226,0.09536521,99253.0,99252.0,0.18100411]
[1736138084622,0.09636521,99253.0,99252.0,0.18100411]
[1736138084924,0.09636521,99253.0,99251.0,0.0311]
[1736138084925,0.046354,99253.0,99251.0,0.0311]
[1736138085125,0.047354,99253.0,99251.0,0.0311]
[1736138085522,0.002,99253.0,99248.0,0.24133882]
[1736138085725,0.045356,99249.0,99248.0,0.24133882]
[1736138085929,0.205356,99249.0,99248.0,0.24133882]
[1736138086226,0.205356,99249.0,99247.0,0.24133882]
[1736138087326,0.04901121,99248.0,99245.0,0.3608]
[1736138087521,0.045357,99247.0,99245.0,0.3608]
[1736138087719,0.175357,99247.0,99245.0,0.3608]
[1736138088727,0.04901121,99246.0,99245.0,0.3608]
[1736138088927,0.19901121,99246.0,99245.0,0.3608]
[1736138090821,0.04901121,99246.0,99245.0,0.3608]
[1736138091019,0.045357,99247.0,99245.0,0.54177383]
[1736138091426,0.045357,99247.0,99246.0,1.32]
[1736138092031,0.045357,99247.0,99246.0,1.50097383]
[1736138094421,0.045357,99247.0,99246.0,1.32]
[1736138096827,0.045357,99247.0,99246.0,1.50086001]
[1736138099435,0.09436992,99247.0,99246.0,1.32]
[1736138099930,0.09436992,99247.0,99245.0,0.3608]
[1736138101638,0.09436992,99247.0,99246.0,1.32]
[1736138102031,0.045357,99247.0,99246.0,1.32]
[1736138103736,0.045357,99247.0,99246.0,1.50086001]
[1736138105036,0.10120216,99249.0,99248.0,0.045356]
[1736138105634,0.10120216,99249.0,99248.0,1.365356]
[1736138106341,0.09165592,99249.0,99248.0,1.365356]
[1736138107639,0.001,99249.0,99248.0,1.365356]
[1736138114737,0.42478231,99260.0,99248.0,1.365356]
[1736138114738,0.2102058,99279.0,99248.0,1.365356]
[1736138114945,0.045343,99277.0,99263.0,0.045349]
[1736138115248,0.01019561,99267.0,99263.0,0.045349]
[1736138115547,0.1801764,99266.0,99265.0,0.045349]
[1736138116848,0.1841764,99266.0,99265.0,0.045349]
[1736138117244,0.09453328,99266.0,99265.0,0.22584913]
[1736138117545,0.10053328,99266.0,99265.0,0.22584913]
[1736138118148,0.09553328,99266.0,99265.0,0.22584913]
[1736138118538,0.001,99266.0,99265.0,0.045349]
[1736138118738,0.002,99266.0,99265.0,0.045349]
[1736138120845,0.09053328,99273.0,99272.0,0.045345]
[1736138121847,0.00991896,99277.0,99272.0,0.18050013]
[1736138122050,0.09053328,99278.0,99276.0,0.045344]
[1736138122643,0.09053328,99278.0,99277.0,1.32]
[1736138123243,0.09053328,99280.0,99278.0,0.045343]
[1736138124650,0.46169879,99281.0,99280.0,0.045342]
[1736138126451,0.46269879,99281.0,99280.0,0.045342]